fUST/lending_fUST_20241227
["ID","MTS","AMOUNT","RATE_DAILY","PERIOD"]
[346790654,1735288271318,-6770.48,0.0001295,2]
[346790655,1735288271327,-3581.39979576,0.00012987,2]
[346790656,1735288271336,-4040.99571489,0.00013,2]
[346790657,1735288271348,-500.0,0.00013,2]
[346790658,1735288271358,-227.57,0.00013,2]
[346790659,1735288271367,-14658.58306852,0.00013,2]
[346790660,1735288271501,-3822.7077029,0.00011302,2]
[346790661,1735288271788,-500.0,9.382e-05,2]
[346790662,1735288271797,-524.61157467,9.383e-05,2]
[346790663,1735288271807,-500.0,9.385e-05,2]
[346790664,1735288271817,-500.0,9.659e-05,2]
[346790665,1735288271827,-500.0,9.933e-05,2]
[346790666,1735288271836,-408.76101797,0.00010207,2]
[346790667,1735288271851,-979.92052402,0.00011302,2]
[346790669,1735288381847,175.0,0.000129,6]
[346790672,1735288431688,300.0,0.000129,6]
[346790681,1735288489470,500.0,0.00020538,120]
[346790683,1735288541807,5968.8657879,0.00023,120]
[346790685,1735288596172,10000.0,8.98e-05,2]
[346790686,1735288695914,24900.0,8.384e-05,2]
[346790687,1735288752108,789.4124561,8.384e-05,2]
[346790691,1735288996082,1608.11,8.922e-05,2]
[346790695,1735289211136,-238.39177109,9.269e-05,2]
[346790699,1735289407061,-301.72320421,9.084e-05,2]
[346790701,1735289407089,-694.01760287,9.176e-05,2]
[346790702,1735289407121,-742.83250472,9.176e-05,2]
[346790704,1735289407147,-300.0,9.362e-05,2]
[346790706,1735289407175,-300.0,9.362e-05,2]
[346790707,1735289407202,-91.22475789,9.363e-05,2]
[346790751,1735289432007,-2410.00340391,9.269e-05,2]
[346790753,1735289432016,-409.29954382,9.363e-05,2]
[346790755,1735289432026,-500.0,9.363e-05,2]
[346790757,1735289432036,-500.48675018,9.363e-05,2]
[346790759,1735289432045,-500.0,9.363e-05,2]
[346790760,1735289432054,-500.21710991,9.363e-05,2]
[346790762,1735289432063,-500.0,9.379e-05,2]
[346790765,1735289432072,-500.0,9.379e-05,2]
[346790767,1735289432082,-1102.43,9.379e-05,2]
[346790769,1735289432091,-500.0,9.379e-05,2]
[346790771,1735289432100,-1013.25,9.379e-05,2]
[346790772,1735289432111,-399.39086518,9.379e-05,2]
[346790776,1735289432120,-247.11853059,9.379e-05,2]
[346790778,1735289432130,-526.6786926,9.38e-05,2]
[346790780,1735289432140,-500.0,9.38e-05,2]
[346790782,1735289432149,-500.0,9.38e-05,2]
[346790784,1735289432158,-500.0,9.38e-05,2]
[346790786,1735289432167,-500.0,9.38e-05,2]
[346790787,1735289432176,-501.81295154,9.38e-05,2]
[346790789,1735289432185,-500.0,9.38e-05,2]
[346790791,1735289432194,-500.0,9.38e-05,2]
[346790793,1735289432203,-524.95170891,9.38e-05,2]
[346790796,1735289432212,-500.0,9.38e-05,2]
[346790797,1735289432222,-500.0,9.38e-05,2]
[346790799,1735289432231,-500.0,9.38e-05,2]
[346790801,1735289432240,-500.0,9.38e-05,2]
[346790803,1735289432249,-500.0,9.38e-05,2]
[346790805,1735289432259,-501.03810293,9.38e-05,2]
[346790807,1735289432268,-403.36272223,9.38e-05,2]
[346790809,1735289432277,-500.0,9.38e-05,2]
[346790811,1735289432286,-500.0,9.38e-05,2]
[346790813,1735289432295,-500.0,9.38e-05,2]
[346790815,1735289432304,-604.18797445,9.38e-05,2]
[346790818,1735289432315,-200.13415461,9.38e-05,2]
[346790819,1735289432324,-500.0,9.38e-05,2]
[346790822,1735289432334,-500.0,9.38e-05,2]
[346790824,1735289432343,-500.0,9.38e-05,2]
[346790826,1735289432354,-500.0,9.38e-05,2]
[346790827,1735289432363,-500.0,9.38e-05,2]
[346790829,1735289432373,-500.0,9.38e-05,2]
[346790831,1735289432386,-500.0,9.38e-05,2]
[346790834,1735289432395,-500.0,9.38e-05,2]
[346790835,1735289432405,-500.0,9.38e-05,2]
[346790837,1735289432415,-500.0,9.38e-05,2]
[346790839,1735289432424,-500.0,9.38e-05,2]
[346790841,1735289432434,-500.0,9.38e-05,2]
[346790843,1735289432443,-567.40950746,9.38e-05,2]
[346790846,1735289432452,-873.53,9.38e-05,2]
[346790848,1735289432462,-501.65713776,9.38e-05,2]
[346790849,1735289432473,-500.0,9.38e-05,2]
[346790851,1735289432484,-500.0,9.38e-05,2]
[346790853,1735289432494,-500.0,9.38e-05,2]
[346790855,1735289432503,-500.0,9.38e-05,2]
[346790857,1735289432512,-500.0,9.38e-05,2]
[346790859,1735289432521,-500.0,9.38e-05,2]
[346790861,1735289432530,-500.0,9.38e-05,2]
[346790863,1735289432539,-500.0,9.38e-05,2]
[346790865,1735289432548,-500.0,9.38e-05,2]
[346790867,1735289432557,-500.0,9.38e-05,2]
[346790869,1735289432567,-3579.96,9.38e-05,2]
[346790871,1735289432577,-500.0,9.38e-05,2]
[346790873,1735289432588,-624.76,9.38e-05,2]
[346790875,1735289432597,-500.0,9.38e-05,2]
[346790877,1735289432608,-500.0,9.38e-05,2]
[346790878,1735289432617,-500.0,9.38e-05,2]
[346790879,1735289432626,-578.99,9.38e-05,2]
[346790880,1735289432635,-1369.23,9.38e-05,2]
[346790881,1735289432644,-500.0,9.38e-05,2]
[346790882,1735289432653,-500.0,9.38e-05,2]
[346790883,1735289432662,-500.0,9.38e-05,2]
[346790884,1735289432671,-500.0,9.38e-05,2]
[346790885,1735289432680,-500.0,9.38e-05,2]
[346790886,1735289432689,-500.0,9.38e-05,2]
[346790887,1735289432699,-500.0,9.38e-05,2]
[346790888,1735289432708,-500.0,9.38e-05,2]
[346790889,1735289432718,-500.0,9.38e-05,2]
[346790890,1735289432727,-500.0,9.38e-05,2]
[346790891,1735289432737,-500.0,9.38e-05,2]
[346790892,1735289432747,-500.0,9.38e-05,2]
[346790893,1735289432757,-500.0,9.38e-05,2]
[346790894,1735289432767,-500.0,9.38e-05,2]
[346790895,1735289432776,-500.0,9.38e-05,2]
[346790896,1735289432786,-500.0,9.38e-05,2]
[346790897,1735289432795,-507.99,9.38e-05,2]
[346790898,1735289432805,-500.0,9.38e-05,2]
[346790899,1735289432814,-549.59,9.38e-05,2]
[346790900,1735289432824,-804.69,9.38e-05,2]
[346790901,1735289432833,-500.0,9.38e-05,2]
[346790902,1735289432842,-500.0,9.38e-05,2]
[346790904,1735289432851,-500.0,9.38e-05,2]
[346790906,1735289432862,-500.0,9.38e-05,2]
[346790908,1735289432872,-500.0,9.38e-05,2]
[346790910,1735289432881,-566.47,9.38e-05,2]
[346790912,1735289432891,-500.0,9.38e-05,2]
[346790914,1735289432900,-500.0,9.38e-05,2]
[346790916,1735289432909,-500.0,9.38e-05,2]
[346790918,1735289432918,-500.0,9.38e-05,2]
[346790920,1735289432927,-500.0,9.38e-05,2]
[346790922,1735289432937,-500.0,9.38e-05,2]
[346790924,1735289432949,-500.0,9.38e-05,2]
[346790926,1735289432959,-500.0,9.38e-05,2]
[346790928,1735289432968,-500.0,9.38e-05,2]
[346790930,1735289432978,-500.0,9.381e-05,2]
[346790932,1735289432987,-500.0,9.381e-05,2]
[346790934,1735289432998,-500.0,9.381e-05,2]
[346790936,1735289433007,-500.0,9.381e-05,2]
[346790938,1735289433017,-503.04,9.381e-05,2]
[346790940,1735289433026,-500.0,9.381e-05,2]
[346790942,1735289433036,-500.0,9.381e-05,2]
[346790944,1735289433045,-500.0,9.381e-05,2]
[346790946,1735289433054,-500.0,9.381e-05,2]
[346790948,1735289433063,-500.0,9.381e-05,2]
[346790950,1735289433073,-500.0,9.381e-05,2]
[346790952,1735289433083,-500.0,9.381e-05,2]
[346790954,1735289433092,-500.0,9.381e-05,2]
[346790956,1735289433101,-500.0,9.381e-05,2]
[346790958,1735289433113,-500.0,9.381e-05,2]
[346790960,1735289433122,-500.0,9.381e-05,2]
[346790962,1735289433131,-500.0,9.381e-05,2]
[346790964,1735289433141,-500.0,9.381e-05,2]
[346790966,1735289433151,-501.42343876,9.381e-05,2]
[346790968,1735289433160,-501.97236093,9.381e-05,2]
[346790970,1735289433170,-500.0,9.381e-05,2]
[346790972,1735289433179,-500.0,9.381e-05,2]
[346790974,1735289433189,-603.8,9.381e-05,2]
[346790976,1735289433199,-502.73923988,9.381e-05,2]
[346790978,1735289433209,-500.0,9.381e-05,2]
[346790980,1735289433221,-505.1481969,9.381e-05,2]
[346790982,1735289433230,-175.43284209,9.381e-05,2]
[346790984,1735289433239,-500.0,9.381e-05,2]
[346790986,1735289433249,-500.0,9.381e-05,2]
[346790988,1735289433259,-500.0,9.381e-05,2]
[346790990,1735289433268,-500.0,9.381e-05,2]
[346790992,1735289433279,-503.69378914,9.381e-05,2]
[346790993,1735289433288,-502.51035047,9.381e-05,2]
[346790995,1735289433298,-266.75211091,9.381e-05,2]
[346790998,1735289433310,-500.0,9.381e-05,2]
[346791000,1735289433320,-500.0,9.381e-05,2]
[346791001,1735289433330,-500.0,9.381e-05,2]
[346791003,1735289433340,-500.0,9.381e-05,2]
[346791006,1735289433351,-642.62519808,9.381e-05,2]
[346791008,1735289433363,-500.0,9.381e-05,2]
[346791010,1735289433373,-503.10985476,9.381e-05,2]
[346791012,1735289433384,-500.0,9.381e-05,2]
[346791014,1735289433394,-500.0,9.381e-05,2]
[346791016,1735289433404,-13146.08,9.381e-05,2]
[346791018,1735289433414,-502.33794528,9.381e-05,2]
[346791019,1735289433424,-500.0,9.381e-05,2]
[346791020,1735289433434,-502.3763763,9.381e-05,2]
[346791021,1735289433444,-500.0,9.381e-05,2]
[346791022,1735289433453,-500.0,9.381e-05,2]
[346791023,1735289433462,-500.0,9.381e-05,2]
[346791024,1735289433473,-500.0,9.381e-05,2]
[346791026,1735289433482,-500.0,9.381e-05,2]
[346791028,1735289433491,-431.71421158,9.381e-05,2]
[346791029,1735289433501,-500.0,9.381e-05,2]
[346791030,1735289433510,-500.0,9.381e-05,2]
[346791031,1735289433520,-500.0,9.381e-05,2]
[346791032,1735289433530,-501.47433253,9.381e-05,2]
[346791033,1735289433539,-500.0,9.381e-05,2]
[346791034,1735289433549,-500.0,9.381e-05,2]
[346791035,1735289433559,-502.60403765,9.381e-05,2]
[346791037,1735289433568,-500.0,9.381e-05,2]
[346791038,1735289433577,-503.89358678,9.381e-05,2]
[346791040,1735289433587,-291.32269391,9.381e-05,2]
[346791042,1735289433597,-500.0,9.382e-05,2]
[346791043,1735289433606,-500.0,9.382e-05,2]
[346791044,1735289433615,-500.0,9.382e-05,2]
[346791045,1735289433626,-500.0,9.382e-05,2]
[346791047,1735289433635,-500.0,9.382e-05,2]
[346791049,1735289433644,-500.0,9.382e-05,2]
[346791051,1735289433654,-500.0,9.382e-05,2]
[346791053,1735289433664,-472.07496135,9.382e-05,2]
[346791055,1735289433673,-500.0,9.382e-05,2]
[346791057,1735289433683,-500.0,9.382e-05,2]
[346791058,1735289433832,-500.0,9.382e-05,2]
[346791059,1735289433843,-500.0,9.382e-05,2]
[346791060,1735289433853,-500.0,9.382e-05,2]
[346791061,1735289433864,-500.0,9.382e-05,2]
[346791062,1735289433874,-500.0,9.382e-05,2]
[346791063,1735289433885,-500.0,9.382e-05,2]
[346791064,1735289433895,-500.0,9.382e-05,2]
[346791065,1735289433905,-500.0,9.382e-05,2]
[346791066,1735289433915,-500.0,9.382e-05,2]
[346791067,1735289433925,-500.0,9.382e-05,2]
[346791068,1735289433935,-500.0,9.382e-05,2]
[346791069,1735289433944,-260.15685075,9.382e-05,2]
[346791070,1735289433954,-500.0,9.382e-05,2]
[346791071,1735289433968,-500.0,9.382e-05,2]
[346791072,1735289433978,-500.0,9.382e-05,2]
[346791073,1735289433988,-500.0,9.382e-05,2]
[346791074,1735289433997,-500.0,9.382e-05,2]
[346791075,1735289434008,-500.0,9.382e-05,2]
[346791076,1735289434018,-500.0,9.382e-05,2]
[346791077,1735289434029,-500.0,9.382e-05,2]
[346791078,1735289434039,-500.0,9.382e-05,2]
[346791079,1735289434049,-500.0,9.382e-05,2]
[346791080,1735289434059,-228.93834509,9.382e-05,2]
[346791081,1735289434068,-500.0,9.382e-05,2]
[346791082,1735289434078,-500.0,9.382e-05,2]
[346791083,1735289434087,-500.0,9.382e-05,2]
[346791084,1735289434097,-500.0,9.382e-05,2]
[346791085,1735289434106,-500.0,9.382e-05,2]
[346791086,1735289434115,-500.0,9.382e-05,2]
[346791087,1735289434125,-201.86590635,9.382e-05,2]
[346791088,1735289434135,-500.0,9.382e-05,2]
[346791089,1735289434144,-500.0,9.382e-05,2]
[346791090,1735289434153,-500.0,9.382e-05,2]
[346791091,1735289434163,-500.0,9.382e-05,2]
[346791092,1735289434173,-501.88596783,9.382e-05,2]
[346791093,1735289434183,-502.8656704,9.382e-05,2]
[346791094,1735289434192,-510.96916891,9.382e-05,2]
[346791095,1735289434202,-500.0,9.382e-05,2]
[346791096,1735289434211,-500.0,9.382e-05,2]
[346791097,1735289434220,-513.7883702,9.382e-05,2]
[346791098,1735289434230,-500.0,9.382e-05,2]
[346791099,1735289434240,-500.0,9.382e-05,2]
[346791100,1735289434250,-502.56751063,9.382e-05,2]
[346791101,1735289434259,-500.0,9.382e-05,2]
[346791102,1735289434268,-234.46264604,9.382e-05,2]
[346791103,1735289434278,-503.00266662,9.382e-05,2]
[346791104,1735289434287,-502.19180565,9.382e-05,2]
[346791105,1735289434298,-2392.21,9.382e-05,2]
[346791106,1735289434307,-502.733197,9.382e-05,2]
[346791107,1735289434317,-503.60952583,9.382e-05,2]
[346791108,1735289434327,-500.0,9.382e-05,2]
[346791109,1735289434337,-157.05954367,9.382e-05,2]
[346791110,1735289434346,-502.89907346,9.382e-05,2]
[346791111,1735289434356,-500.0,9.382e-05,2]
[346791112,1735289434366,-500.0,9.382e-05,2]
[346791113,1735289434376,-502.66409176,9.382e-05,2]
[346791114,1735289434386,-500.0,9.382e-05,2]
[346791115,1735289434396,-500.0,9.382e-05,2]
[346791116,1735289434406,-502.17614677,9.382e-05,2]
[346791117,1735289434416,-500.0,9.382e-05,2]
[346791118,1735289434426,-500.0,9.382e-05,2]
[346791119,1735289434435,-501.79548777,9.382e-05,2]
[346791120,1735289434445,-502.52723413,9.382e-05,2]
[346791121,1735289434455,-500.0,9.382e-05,2]
[346791122,1735289434464,-500.0,9.382e-05,2]
[346791123,1735289434474,-620.980716,9.382e-05,2]
[346791124,1735289434483,-540.90178331,9.382e-05,2]
[346791125,1735289434492,-502.04092753,9.382e-05,2]
[346791126,1735289434502,-500.0,9.382e-05,2]
[346791127,1735289434512,-500.0,9.382e-05,2]
[346791128,1735289434521,-229.82,9.382e-05,2]
[346791129,1735289434530,-500.0,9.382e-05,2]
[346791130,1735289434539,-503.17791094,9.382e-05,2]
[346791131,1735289434549,-500.0,9.382e-05,2]
[346791132,1735289434557,-502.4643162,9.382e-05,2]
[346791133,1735289434566,-500.0,9.382e-05,2]
[346791134,1735289434575,-503.80891113,9.382e-05,2]
[346791135,1735289434584,-502.53716987,9.382e-05,2]
[346791136,1735289434594,-500.0,9.382e-05,2]
[346791137,1735289434603,-502.71180506,9.382e-05,2]
[346791138,1735289434613,-500.0,9.382e-05,2]
[346791139,1735289434622,-501.82365361,9.382e-05,2]
[346791140,1735289434631,-501.41028101,9.382e-05,2]
[346791141,1735289434640,-776.1,9.382e-05,2]
[346791142,1735289434652,-500.84069531,9.382e-05,2]
[346791143,1735289434661,-500.0,9.382e-05,2]
[346791144,1735289434671,-500.0,9.382e-05,2]
[346791145,1735289434682,-500.0,9.382e-05,2]
[346791146,1735289434693,-500.0,9.382e-05,2]
[346791147,1735289434703,-500.0,9.382e-05,2]
[346791148,1735289434712,-281.24926534,9.382e-05,2]
[346791149,1735289434721,-500.0,9.382e-05,2]
[346791150,1735289434731,-500.0,9.382e-05,2]
[346791151,1735289434740,-500.0,9.382e-05,2]
[346791152,1735289434749,-500.0,9.382e-05,2]
[346791153,1735289434759,-500.0,9.382e-05,2]
[346791154,1735289434768,-500.0,9.382e-05,2]
[346791155,1735289434777,-631.0059852,9.382e-05,2]
[346791156,1735289434787,-500.0,9.382e-05,2]
[346791157,1735289434798,-500.0,9.382e-05,2]
[346791158,1735289434808,-500.0,9.382e-05,2]
[346791159,1735289434817,-500.0,9.382e-05,2]
[346791160,1735289434827,-500.0,9.382e-05,2]
[346791161,1735289434836,-500.0,9.382e-05,2]
[346791162,1735289434846,-504.09148116,9.382e-05,2]
[346791163,1735289434855,-500.0,9.382e-05,2]
[346791164,1735289434865,-500.0,9.382e-05,2]
[346791165,1735289434875,-500.0,9.382e-05,2]
[346791166,1735289434884,-168.58341398,9.382e-05,2]
[346791167,1735289434894,-500.0,9.382e-05,2]
[346791168,1735289434905,-482.14878456,9.383e-05,2]
[346791169,1735289434915,-500.0,9.383e-05,2]
[346791170,1735289434924,-501.98747258,9.383e-05,2]
[346791171,1735289434934,-500.0,9.383e-05,2]
[346791172,1735289434943,-501.41180983,9.383e-05,2]
[346791173,1735289434953,-501.69092959,9.383e-05,2]
[346791174,1735289434964,-500.0,9.383e-05,2]
[346791175,1735289434975,-503.05622436,9.383e-05,2]
[346791176,1735289434984,-559.06629329,9.383e-05,2]
[346791177,1735289434993,-500.0,9.383e-05,2]
[346791178,1735289435003,-500.0,9.383e-05,2]
[346791179,1735289435014,-334.44290064,9.383e-05,2]
[346791180,1735289435026,-500.0,9.383e-05,2]
[346791181,1735289435036,-500.0,9.383e-05,2]
[346791182,1735289435046,-500.0,9.383e-05,2]
[346791183,1735289435058,-502.22455953,9.383e-05,2]
[346791184,1735289435069,-500.0,9.383e-05,2]
[346791185,1735289435079,-500.0,9.383e-05,2]
[346791186,1735289435088,-384.19448337,9.383e-05,2]
[346791187,1735289435098,-500.36851855,9.383e-05,2]
[346791188,1735289435109,-500.0,9.383e-05,2]
[346791189,1735289435118,-500.0,9.383e-05,2]
[346791190,1735289435129,-500.0,9.383e-05,2]
[346791191,1735289435138,-500.0,9.383e-05,2]
[346791192,1735289435147,-590.41645771,9.383e-05,2]
[346791193,1735289435157,-500.0,9.383e-05,2]
[346791194,1735289435166,-500.0,9.383e-05,2]
[346791195,1735289435175,-500.0,9.383e-05,2]
[346791196,1735289435184,-500.0,9.383e-05,2]
[346791197,1735289435194,-500.0,9.383e-05,2]
[346791198,1735289435203,-500.0,9.383e-05,2]
[346791199,1735289435213,-500.0,9.383e-05,2]
[346791200,1735289435222,-500.0,9.383e-05,2]
[346791201,1735289435231,-500.0,9.383e-05,2]
[346791202,1735289435240,-500.0,9.383e-05,2]
[346791203,1735289435250,-52.03138871,9.383e-05,2]
[346791216,1735289438416,-500.0,9.38e-05,2]
[346791217,1735289438426,-500.0,9.38e-05,2]
[346791218,1735289438436,-500.0,9.38e-05,2]
[346791219,1735289438446,-500.93001263,9.381e-05,2]
[346791220,1735289438456,-447.96861129,9.383e-05,2]
[346791221,1735289438465,-500.0,9.383e-05,2]
[346791222,1735289438475,-461.33461376,9.383e-05,2]
[346791223,1735289438484,-500.0,9.383e-05,2]
[346791224,1735289438493,-500.0,9.383e-05,2]
[346791225,1735289438503,-500.0,9.384e-05,2]
[346791226,1735289438512,-500.0,9.384e-05,2]
[346791227,1735289438521,-3664.8,9.384e-05,2]
[346791228,1735289438531,-500.0,9.384e-05,2]
[346791229,1735289438540,-3513.06,9.385e-05,2]
[346791230,1735289438549,-500.0,9.653e-05,2]
[346791231,1735289438559,-1102.43,9.653e-05,2]
[346791232,1735289438569,-500.0,9.653e-05,2]
[346791233,1735289438578,-1013.25,9.653e-05,2]
[346791234,1735289438588,-503.0038404,9.654e-05,2]
[346791235,1735289438597,-500.0,9.654e-05,2]
[346791236,1735289438606,-547.25382647,9.654e-05,2]
[346791237,1735289438617,-873.53,9.654e-05,2]
[346791238,1735289438627,-500.0,9.654e-05,2]
[346791239,1735289438637,-500.0,9.654e-05,2]
[346791240,1735289438647,-500.0,9.654e-05,2]
[346791241,1735289438656,-500.0,9.654e-05,2]
[346791242,1735289438666,-500.0,9.654e-05,2]
[346791243,1735289438676,-594.4565078,9.654e-05,2]
[346791244,1735289438685,-500.0,9.654e-05,2]
[346791245,1735289438695,-3579.96,9.654e-05,2]
[346791246,1735289438705,-624.76,9.654e-05,2]
[346791247,1735289438714,-500.0,9.654e-05,2]
[346791248,1735289438724,-578.99,9.654e-05,2]
[346791249,1735289438734,-1369.23,9.654e-05,2]
[346791250,1735289438743,-406.78626909,9.654e-05,2]
[346791251,1735289438753,-378.5351353,9.654e-05,2]
[346791252,1735289438762,-146.89901772,9.654e-05,2]
[346791253,1735289438774,-353.10098228,9.654e-05,2]
[346791254,1735289438784,-500.0,9.654e-05,2]
[346791255,1735289438793,-500.0,9.654e-05,2]
[346791256,1735289438802,-500.0,9.654e-05,2]
[346791257,1735289438812,-505.25453754,9.654e-05,2]
[346791258,1735289438822,-500.0,9.654e-05,2]
[346791259,1735289438832,-500.0,9.654e-05,2]
[346791260,1735289438841,-549.59,9.654e-05,2]
[346791261,1735289438978,-804.69,9.654e-05,2]
[346791262,1735289438988,-500.0,9.654e-05,2]
[346791263,1735289438998,-566.47,9.654e-05,2]
[346791264,1735289439012,-500.0,9.654e-05,2]
[346791265,1735289439022,-603.77,9.654e-05,2]
[346791266,1735289439032,-500.0,9.654e-05,2]
[346791267,1735289439043,-500.0,9.654e-05,2]
[346791268,1735289439052,-500.0,9.654e-05,2]
[346791269,1735289439062,-500.0,9.654e-05,2]
[346791270,1735289439072,-500.0,9.654e-05,2]
[346791271,1735289439084,-500.0,9.655e-05,2]
[346791272,1735289439094,-500.0,9.655e-05,2]
[346791273,1735289439104,-500.0,9.655e-05,2]
[346791274,1735289439115,-500.0,9.655e-05,2]
[346791275,1735289439125,-500.0,9.655e-05,2]
[346791276,1735289439134,-500.0,9.655e-05,2]
[346791277,1735289439143,-500.0,9.655e-05,2]
[346791278,1735289439153,-500.0,9.655e-05,2]
[346791279,1735289439163,-500.0,9.655e-05,2]
[346791280,1735289439173,-500.0,9.655e-05,2]
[346791281,1735289439183,-221.00505656,9.655e-05,2]
[346791282,1735289439192,-500.0,9.655e-05,2]
[346791283,1735289439202,-500.0,9.655e-05,2]
[346791284,1735289439211,-622.98642493,9.655e-05,2]
[346791285,1735289439221,-500.0,9.655e-05,2]
[346791286,1735289439230,-500.0,9.655e-05,2]
[346791287,1735289439240,-500.0,9.655e-05,2]
[346791288,1735289439249,-500.0,9.655e-05,2]
[346791289,1735289439259,-13146.08,9.655e-05,2]
[346791290,1735289439269,-500.0,9.655e-05,2]
[346791291,1735289439278,-500.0,9.655e-05,2]
[346791292,1735289439288,-500.0,9.655e-05,2]
[346791293,1735289439298,-500.0,9.655e-05,2]
[346791294,1735289439308,-500.0,9.655e-05,2]
[346791295,1735289439317,-406.0601775,9.656e-05,2]
[346791296,1735289439327,-500.0,9.656e-05,2]
[346791297,1735289439336,-500.0,9.656e-05,2]
[346791298,1735289439345,-500.0,9.656e-05,2]
[346791299,1735289439355,-500.0,9.656e-05,2]
[346791300,1735289439367,-500.0,9.656e-05,2]
[346791301,1735289439376,-500.0,9.656e-05,2]
[346791302,1735289439387,-500.0,9.656e-05,2]
[346791303,1735289439396,-500.0,9.656e-05,2]
[346791304,1735289439406,-500.0,9.656e-05,2]
[346791306,1735289439416,-500.0,9.656e-05,2]
[346791307,1735289439426,-500.0,9.656e-05,2]
[346791308,1735289439436,-500.0,9.656e-05,2]
[346791309,1735289439445,-500.0,9.656e-05,2]
[346791310,1735289439455,-500.0,9.656e-05,2]
[346791311,1735289439464,-500.0,9.656e-05,2]
[346791312,1735289439473,-500.0,9.656e-05,2]
[346791313,1735289439483,-500.0,9.656e-05,2]
[346791314,1735289439492,-500.0,9.656e-05,2]
[346791315,1735289439501,-500.0,9.656e-05,2]
[346791316,1735289439511,-500.0,9.656e-05,2]
[346791317,1735289439520,-2392.21,9.656e-05,2]
[346791318,1735289439529,-500.0,9.656e-05,2]
[346791319,1735289439539,-500.0,9.656e-05,2]
[346791320,1735289439548,-500.0,9.656e-05,2]
[346791321,1735289439558,-500.0,9.656e-05,2]
[346791322,1735289439568,-500.0,9.656e-05,2]
[346791323,1735289439578,-500.0,9.656e-05,2]
[346791324,1735289439587,-500.0,9.656e-05,2]
[346791325,1735289439596,-500.0,9.656e-05,2]
[346791326,1735289439606,-456.32781133,9.656e-05,2]
[346791327,1735289439621,-43.67218867,9.656e-05,2]
[346791329,1735289439630,-500.0,9.656e-05,2]
[346791330,1735289439639,-776.1,9.656e-05,2]
[346791331,1735289439649,-323.75931422,9.656e-05,2]
[346791332,1735289439659,-500.0,9.656e-05,2]
[346791333,1735289439669,-468.34824623,9.656e-05,2]
[346791334,1735289439678,-500.0,9.656e-05,2]
[346791336,1735289439687,-500.0,9.656e-05,2]
[346791337,1735289439696,-500.0,9.656e-05,2]
[346791338,1735289439706,-500.0,9.656e-05,2]
[346791339,1735289439715,-500.0,9.657e-05,2]
[346791340,1735289439725,-500.0,9.657e-05,2]
[346791341,1735289439734,-500.0,9.657e-05,2]
[346791343,1735289439743,-500.0,9.657e-05,2]
[346791345,1735289439753,-500.0,9.657e-05,2]
[346791347,1735289439762,-500.0,9.657e-05,2]
[346791349,1735289439772,-500.0,9.658e-05,2]
[346791350,1735289439782,-500.0,9.658e-05,2]
[346791351,1735289439791,-3664.8,9.658e-05,2]
[346791352,1735289439800,-500.0,9.658e-05,2]
[346791353,1735289439810,-3513.06,9.659e-05,2]
[346791354,1735289439820,-500.32879532,9.911e-05,2]
[346791355,1735289439830,-1000.47495219,9.911e-05,2]
[346791356,1735289439839,-500.0,9.927e-05,2]
[346791357,1735289439849,-1102.43,9.927e-05,2]
[346791358,1735289439859,-500.0,9.927e-05,2]
[346791359,1735289439872,-1013.25,9.927e-05,2]
[346791360,1735289439882,-873.53,9.928e-05,2]
[346791361,1735289439891,-500.0,9.928e-05,2]
[346791362,1735289439901,-515.62729432,9.928e-05,2]
[346791363,1735289439914,-500.0,9.928e-05,2]
[346791364,1735289439923,-500.0,9.928e-05,2]
[346791365,1735289439933,-500.0,9.928e-05,2]
[346791366,1735289439943,-500.0,9.928e-05,2]
[346791367,1735289439952,-3579.96,9.928e-05,2]
[346791368,1735289439962,-624.76,9.928e-05,2]
[346791369,1735289439971,-500.0,9.928e-05,2]
[346791370,1735289439981,-578.99,9.928e-05,2]
[346791371,1735289439991,-1369.23,9.928e-05,2]
[346791372,1735289440002,-500.0,9.928e-05,2]